Cogmind - Beta 14 @@@ ROGUE MODE // 2024.08.31 @ 18:45:14 Player: VR-DUX Result: Destroyed by G-34 Mercenary with Small Laser Performance ------------- Evolutions (1) 500 Regions Visited (3) 600 Robots Destroyed (65) 325 Value Destroyed (1236) 1236 Prototype IDs (1) 20 Alien Tech Used (0) 0 Bonus (117) 117 TOTAL SCORE: 2798 Bonus ------- High Alert Combat Kills 117 Cogmind --------- Core Integrity 0/400 Matter 11/300 Energy 100/100 System Corruption 0% Temperature Cool (6) Movement Core (700) Ox13 Location -9/Mines Parts ------- > --- POWER (1) -------- (None) > --- PROPULSION (3) --- (None) > --- UTILITY (3) ------ High-capacity Storage Unit Signal Interpreter > --- WEAPON (2) ------- Light Assault Rifle > --- INVENTORY (20) --- Light Ion Engine Light Ion Engine Heavy Ion Engine Medium Storage Unit Sensor Array Light Cannon Light Cannon Improved Light Cannon Hammer Peak State ------------ > --- POWER ------------ Heavy Ion Engine > --- PROPULSION ------- Light Treads Light Treads Light Treads > --- UTILITY ---------- High-capacity Storage Unit Structural Scanner Signal Interpreter > --- WEAPON ----------- Light Cannon Improved Light Cannon > --- INVENTORY -------- Light Ion Engine Light Ion Engine Wheel Medium Storage Unit Sensor Array Medium Laser Light Assault Rifle Light Cannon Light Cannon Mini Grenade Launcher Mini Grenade Launcher Hammer [Rating: 13] Favorites ----------- Power Light Ion Engine Engine Light Ion Engine Power Core Light Nuclear Core Propulsion Light Treads Treads Light Treads Leg Aluminum Leg Wheel Wheel Utility Signal Interpreter Device Structural Scanner Storage Small Storage Unit Processor Signal Interpreter Weapon Light Assault Rifle Energy Gun Medium Laser Ballistic Gun Light Assault Rifle Ballistic Cannon Light Cannon Launcher Mini Grenade Launcher Impact Weapon Hammer Build | -11 -10 -9 -9 ------- Run | Yrd Mat Mat Min Slots Evolved 2 | . . 2 . Power . | . . . . Propulsion 1 | . . 1 . Utility 1 | . . 1 . Weapon . | . . . . Parts Attached 46 | . 27 19 . Power 8 | . 5 3 . Engine 6 | . 3 3 . Core 2 | . 2 . . Reactor . | . . . . Propulsion 9 | . 7 2 . Treads 7 | . 6 1 . Leg . | . . . . Wheel 2 | . 1 1 . Hover . | . . . . Flight . | . . . . Utility 4 | . 3 1 . Device 1 | . . 1 . Storage 2 | . 2 . . Processor 1 | . 1 . . Hackware . | . . . . Protection . | . . . . Artifact . | . . . . Weapon 25 | . 12 13 . Energy Gun 4 | . 3 1 . Energy Cannon . | . . . . Ballistic Gun 5 | . 4 1 . Ballistic Cannon 7 | . 1 6 . Launcher 6 | . 2 4 . Special Weapon . | . . . . Impact Weapon 3 | . 2 1 . Slashing Weapon . | . . . . Piercing Weapon . | . . . . Special Melee Weapon . | . . . . Unidentified Prototypes 1 | . . 1 . Parts Lost 11 | . . 11 . Power 2 | . . 2 . Propulsion 4 | . . 4 . Utility 1 | . . 1 . Weapon 4 | . . 4 . Highest Loss Streak 6 | . . 6 . To Critical Strikes . | . . . . Average Slot Usage (%) 83 | . 97 77 33 Engine 7 | . 9 7 . Core 2 | . 4 . . Treads 17 | . 21 16 . Leg 2 | . 4 . . Wheel 1 | . 1 3 . Device 2 | . . 9 . Storage 12 | . 14 11 11 Processor 11 | . 12 11 11 Energy Gun 4 | . 6 1 . Ballistic Gun 11 | . 16 . 11 Ballistic Cannon 3 | . . 12 . Impact Weapon 3 | . 4 . . Peak Build Rating 13 | 6 9 13 4 Average Rating 7 | 6 7 8 4 On Entrance 6 | 6 6 8 4 Naked Turns . | . . . . Heaviest Build 56 | 10 46 56 41 Greatest Support 60 | 20 40 60 3 Greatest Overweight (x) 17 | . 3 17 13 Average Overweight (x) 1 | . . 2 13 Largest Inventory Capacity 20 | 8 20 20 20 Average Capacity 13 | 8 9 20 20 Most Carried 13 | 6 9 13 9 Average Carried 8 | 6 7 10 9 Final Capacity 20 | 8 20 20 20 Final Carried 9 | 6 9 9 9 Class Distribution -------------------- 76% | Mutant 23% | Scavenger-Mutant Dominant Class ---------------- Mutant | -10/Materials Mutant | -9/Materials Mutant | -9/Mines Resources | -11 -10 -9 -9 ----------- Run | Yrd Mat Mat Min Matter Collected 906 | 220 403 283 . Remotely . | . . . . Salvage Created 1234 | . 648 586 . Parts 113 | . 60 53 . Haulers Intercepted 3 | . 2 1 . Recyclers Shooed 2 | . 1 1 . Parts Field Recycled . | . . . . Retrieved Matter . | . . . . Parts Self-Destructed . | . . . . Prevented . | . . . . Kills | -11 -10 -9 -9 ------- Run | Yrd Mat Mat Min Combat Hostiles Destroyed 40 | . 18 22 . Guns 13 | . 13 . . Cannons 2 | . . 2 . AOE 25 | . 5 20 . Classes Destroyed 9 | . 7 2 . Worker 5 | . 1 4 . Builder 7 | . 3 4 . Hauler 3 | . 2 1 . Recycler 2 | . . 2 . Mechanic 2 | . 1 1 . Watcher 6 | . 2 4 . Swarmer 16 | . 9 7 . Grunt 23 | . 9 14 . Sentry 1 | . . 1 . Best Kill Streak 12 | . 12 9 . Combat Bots Only 8 | . 7 8 . Max Kills in Single Turn 4 | . 3 4 . Gunslinging 1 | . 1 . . Exploded 4 | . 3 4 . Melee . | . . . . Uniques/NPCs Destroyed . | . . . . Combat | -11 -10 -9 -9 -------- Run | Yrd Mat Mat Min Hostile Shots Fired 265 | . 92 169 4 Missed 79 | . 21 57 1 Damage Taken 2071 | . 714 1322 35 Core 513 | . 110 379 24 Absorbed by Shields . | . . . . Core Remaining (%) 78 | 100 56 . . Volleys Fired 162 | 10 91 56 5 Largest 2 | 2 2 2 1 Hottest 85 | 40 70 85 20 Shots Fired 243 | 20 146 72 5 Gun 169 | 20 141 3 5 Cannon 49 | . . 49 . Launcher 25 | . 5 20 . Special . | . . . . Kinetic 193 | 20 118 50 5 Thermal 25 | . 23 2 . Explosive 25 | . 5 20 . Electromagnetic . | . . . . Robot Hit Streak 15 | 5 9 12 15 Robot Miss Streak 4 | 2 4 3 1 Penetration Max . | . . . . Secondary Targets 3 | . 3 . . Max Gunslinging Chain 1 | . 1 . . Shots Hit Robots 135 | 12 81 38 4 Core Hits 105 | 1 51 51 2 Critical Kills 2 | . 2 . . Critical Parts Destroyed . | . . . . Critical Strikes 4 | . 3 1 . Burn 1 | . 1 . . Destroy 2 | . 2 . . Blast 1 | . . 1 . Melee Attacks 2 | . . 2 . Impact 2 | . . 2 . Slashing . | . . . . Piercing . | . . . . Sneak Attacks . | . . . . Combat Hostiles . | . . . . Follow-up Attacks . | . . . . Damage Inflicted 4062 | 105 1044 2883 30 Guns 945 | 105 803 7 30 Cannons 562 | . . 562 . Explosions 2555 | . 241 2314 . Melee . | . . . . Ramming . | . . . . Kinetic 1323 | 105 619 569 30 Thermal 481 | . 184 297 . Explosive 2258 | . 241 2017 . Electromagnetic . | . . . . Impact . | . . . . Slashing . | . . . . Piercing . | . . . . Highest Corruption . | . . . . Average Corruption . | . . . . Corruption Purged . | . . . . Corruption Blocked . | . . . . Overload Shots . | . . . . Overflow Damage 187 | . 2 185 . Projectiles 20 | . . 20 . Explosions 167 | . 2 165 . Melee . | . . . . Knockbacks 3 | . . 3 . Impact . | . . . . Kinetic 3 | . . 3 . Secondary . | . . . . Self-Inflicted Damage 103 | . . 103 . Shots 5 | . . 5 . Rammed . | . . . . Targets Rammed . | . . . . Kicked . | . . . . Crushed . | . . . . Highest Temperature 144 | . 144 61 . Average Temperature 38 | . 46 17 . Received Heat Transfer 876 | . 267 591 18 Siege Activations . | . . . . Robots Corrupted . | . . . . Combat Hostiles . | . . . . Parts Fried . | . . . . Impact Corruptions . | . . . . Robots Melted . | . . . . Combat Hostiles . | . . . . Parts Melted . | . . . . Heat Transferred 842 | . 592 250 . Parts Sabotaged . | . . . . Parts Stolen . | . . . . Parts Stripped . | . . . . Power Chain Reactions . | . . . . Alert | -11 -10 -9 -9 ------- Run | Yrd Mat Mat Min Peak Influence 640 | . 375 640 247 Initial 247 | . . 135 247 Average 260 | . 196 403 247 Maximum Alert Level 2 | . 1 2 1 Low Security (%) 38 | 100 53 23 . Level 1 46 | . 46 26 100 Level 2 14 | . . 50 . Level 3 . | . . . . Level 4 . | . . . . Level 5 . | . . . . High Security . | . . . . Max Security . | . . . . Squads Dispatched 4 | . 2 2 . Investigation 1 | . 1 . . Extermination . | . . . . Reinforcement 3 | . 1 2 . Assault . | . . . . Garrison . | . . . . Intercept . | . . . . Searches Triggered . | . . . . Construction Impeded 2 | . . 2 . Haulers Reinforced . | . . . . Active Scanning Responses . | . . . . Cargo Convoy Interrupts . | . . . . Stealth | -11 -10 -9 -9 --------- Run | Yrd Mat Mat Min Distress Signals 7 | . 3 3 1 Communications Jammed . | . . . . Distress Signals . | . . . . Times Spotted 59 | . 27 31 1 Peak Tracking Total 7 | . 4 7 1 Tactical Retreats 3 | . 3 . . Traps | -11 -10 -9 -9 ------- Run | Yrd Mat Mat Min Traps Triggered 4 | . 3 1 . Indirectly . | . . . . Trap Hack Attempts . | . . . . Triggered . | . . . . Disarmed . | . . . . Reprogrammed . | . . . . Reused . | . . . . Traps Extracted . | . . . . Installed . | . . . . Triggered . | . . . . Machines | -11 -10 -9 -9 ---------- Run | Yrd Mat Mat Min Machines Disabled 3 | . . 3 . Max in Single Turn 3 | . . 3 . Machines Repaired . | . . . . Machines Dismantled . | . . . . Machines Sabotaged . | . . . . Overloaded Fab Kills . | . . . . Hacking | -11 -10 -9 -9 --------- Run | Yrd Mat Mat Min Machines Accessed 7 | . 5 2 . Terminals 6 | . 4 2 . Fabricators . | . . . . Repair Stations . | . . . . Recycling Units 1 | . 1 . . Scanalyzers . | . . . . Garrison Access . | . . . . Total Hacks 16 | . 10 6 . Successful 8 | . 6 2 . Failed 8 | . 4 4 . Catastrophic 3 | . 2 1 . Database Lockouts . | . . . . Manual 10 | . 6 4 . Terminals 14 | . 8 6 . Fabricators . | . . . . Repair Stations . | . . . . Recycling Units 2 | . 2 . . Scanalyzers . | . . . . Garrison Access . | . . . . Terminal Hacks 5 | . 4 1 . Robot Analysis 2 | . 2 . . Branch Access Points 2 | . 1 1 . Locate Traps 1 | . 1 . . Fabricator Hacks . | . . . . Repair Station Hacks . | . . . . Recycling Unit Hacks 1 | . 1 . . Retrieve Components 1 | . 1 . . Scanalyzer . | . . . . Garrison Access Hacks . | . . . . Unauthorized Hacks 2 | . 1 1 . Terminals 2 | . 1 1 . Assimilate 1 | . 1 . . Botnet 1 | . . 1 . Fabricators . | . . . . Repair Stations . | . . . . Recycling Units . | . . . . Scanalyzers . | . . . . Garrison Access . | . . . . Data Cores Recovered . | . . . . Used . | . . . . Hacking Detections 7 | . 5 2 . Full Trace Events . | . . . . Feedback Events . | . . . . Feedback Blocked . | . . . . Robot Schematics Acquired . | . . . . Robots Built . | . . . . Authchips . | . . . . Time . | . . . . Total Robot Build Rating . | . . . . Part Schematics Acquired . | . . . . Parts Built . | . . . . Authchips . | . . . . Time . | . . . . Total Part Build Rating . | . . . . Parts Repaired . | . . . . Time . | . . . . Parts Recycled . | . . . . Recycled Matter . | . . . . Retrieved Matter . | . . . . Retrieved Components 5 | . 5 . . Parts Scanalyzed . | . . . . Part Schematics Acquired . | . . . . Parts Damaged . | . . . . Bothacking | -11 -10 -9 -9 ------------ Run | Yrd Mat Mat Min Used RIF Installer . | . . . . Robots Hacked . | . . . . Non-combat . | . . . . Combat . | . . . . Robot Hacks Applied . | . . . . Relay Couplers Released . | . . . . Fabnet Peak Effective % . | . . . . Robots Rewired . | . . . . Allies Hacked . | . . . . Hacks Repelled . | . . . . Allies | -11 -10 -9 -9 -------- Run | Yrd Mat Mat Min Total Allies . | . . . . Largest Group . | . . . . Highest-Rated Group . | . . . . Highest-Rated Ally . | . . . . Total Orders . | . . . . Ally Attacks . | . . . . Total Damage . | . . . . Kills . | . . . . Allies Corrupted . | . . . . Allies Melted . | . . . . Intel | -11 -10 -9 -9 ------- Run | Yrd Mat Mat Min Robot Analysis Total 2 | . 2 . . Derelict Logs Recovered 1 | . . . 1 Drone Launches . | . . . . Drone Recoveries . | . . . . Exploration | -11 -10 -9 -9 ------------- Run | Yrd Mat Mat Min Turns Passed 1896 | 34 1067 562 233 Spaces Moved 778 | 7 514 225 32 Core 43 | . 3 8 32 Treads 497 | . 384 113 . Legs 85 | 7 78 . . Wheels 153 | . 49 104 . Hover . | . . . . Flight . | . . . . Fastest Speed 80 | 120 80 140 700 Average Speed 182 | 120 153 178 700 Slowest Speed 900 | 120 240 900 700 Overloaded Moves . | . . . . Propulsion Burnouts . | . . . . Robots Hopped . | . . . . Cave-ins Triggered . | . . . . Exploration Rate (%) 28 | 2 72 30 9 Regions Visited 3 Branch Regions 1 Pre-discovered Areas . | . . . . Known Exits Taken 2 | . 1 1 . Unknown Exits Taken 1 | 1 . . . Scrap Searched . | . . . . Spaces Dug 2 | . . 2 . Terrain Destroyed 159 | . 33 126 . Melee 2 | . . 2 . Projectile . | . . . . AOE 157 | . 33 124 . Terrain Rammed . | . . . . Walls Destroyed . | . . . . Machines Disabled . | . . . . Actions | -11 -10 -9 -9 --------- Run | Yrd Mat Mat Min Total 1035 | 16 671 311 37 Wait 11 | . 7 4 . Move 775 | 6 513 224 32 Hop . | . . . . Pick Up 19 | . 14 5 . Fast Attach 13 | . 10 3 . Attach 11 | . 5 6 . Detach . | . . . . Swap 22 | . 12 10 . Drop 20 | . 19 1 . Fire 162 | 10 91 56 5 Melee 2 | . . 2 . Ram . | . . . . Kick . | . . . . Crush . | . . . . Escape Stasis . | . . . . Rewire . | . . . . Trap . | . . . . Miscellaneous . | . . . . Route ------- -11/Scrapyard -10/Materials (discovered 3 exits: *Mat x2 / *Min) -9/Materials (discovered 2 exits: *Min x2) -9/Mines (discovered 1 exit: Mat) History --------- Turn | Location | Event 27 | -11/Scrapyard | Discovered new exit (range 3) 35 | -11/Scrapyard | Entered Materials 254 | -10/Materials | Discovered new exit (range 14) 308 | -10/Materials | Build established: Mutant 390 | -10/Materials | Identified exit to Mines 613 | -10/Materials | Discovered new exit (range 4) 617 | -10/Materials | Identified exit to Materials 782 | -10/Materials | Destroyed 7 combat bots 823 | -10/Materials | Discovered exit to Materials (range 15) 1102 | -10/Materials | Entered another Materials area 1102 | -9/Materials | Evolved 2 slots: Propulsion x1, Utility x1 1209 | -9/Materials | Identified exit to Mines 1218 | -9/Materials | Build established: Scavenger-Mutant 1411 | -9/Materials | Destroyed 8 combat bots 1434 | -9/Materials | Lost 3 parts (2n1w) 1602 | -9/Materials | Core integrity fell below 50% 1654 | -9/Materials | Core integrity fell below 20% 1656 | -9/Materials | Build established: Mutant 1662 | -9/Materials | Lost 6 parts (1p1n1u3w) 1664 | -9/Materials | Entered Mines 1811 | -9/Mines | Identified exit to Materials 1897 | -9/Mines | Destroyed by G-34 Mercenary with Small Laser Last Messages --------------- 01652_ U-05 Engineer builds a Wall. 01653_ U-05 Engineer lays Concrete. 01654_ K-01 Serf collects debris. 01654_ U-05 Engineer lays Concrete. 01655_ The unstable cave ceiling collapses. 01655_ U-05 Engineer builds a Wall. 01656_ K-01 Serf collects debris. 01658_ U-05 Engineer lays Concrete. 01661_ K-01 Serf collects debris. 01661_ U-05 Engineer lays Concrete. 01661_ U-05 Engineer builds a Wall. 01663_ U-05 Engineer lays Concrete. 01663_ K-01 Serf collects debris. 01664_ U-05 Engineer lays Concrete. 01664_ K-01 Serf collects debris. LOCATION=MINES GOAL=ESCAPE 01811_ Acquired derelict log, extracted data. Loading 1 Mines exit... 01881_ R-06 Scavenger sends out distress signal. Map ----- +----------------------------------------------------+ | ?????????????????????????## #??? | | ??????????????????????????## ##??? | | ???????????????????????????## ##??? | | ????????????????????????????# #??? | | ????????????????????????????# #??? | | ????????????????????????????# #??? | | ????????????????????????????# #??? | | ????????????????????????????## #??? | | ?????????????????????????????# #??? | | ?????????????????????????????# #??? | | ?????????????????????????????# #??? | | ?????????????????????????????# #??? | | ?????????????????????????????# #??? | | ?????????????????????????????# #??? | | ?????????????????????????????# #??? | | ?????????????????????????????# #??? | | ????????????????????????###### #??? | | ????????????????????????# #??? | | ????????????????????????# #??? | | ????????????????????????# ######??? | | ????????????????????????# #???????? | | ????????????????????????# #???????? | | ????????????????????????# #???????? | | ????????????????????????# ###?????? | | ????????????????????????# ##????? | | ????????????????????????#@ #????? | | ????????????????????? g #????? | | ????????????????? ##????? | | ????????????? #### #?????? | | ???????????? ????## #????? | | ????????????? ???????## ???? | | ?????????????# ?????????? ??? | | ?????????????##???????????? #?? | | ???????????????????????????# #?? | | ???????????????????????????? ##?? | | ????????????????????????????# ##??? | | ?????????????????????????????###???? | | ???????????????????????????????????? | | ???????????????????????????????????? | | ???????????????????????????????????? | | ???????????????????????????????????? | | ???????????????????????????????????? | | ???????????????????????????????????? | | ???????????????????????????????????? | | ???????????????????????????????????? | | ???????????????????????????????????? | | ???????????????????????????????????? | | ???????????????????????????????????? | | ???????????????????????????????????? | | ???????????????????????????????????? | +----------------------------------------------------+ Best States ------------- Heat Dissipation 28 Energy Generation 14 Energy Capacity 280 Matter Stores 300 Matter Capacity 300 Sight Range 16 Terrain Scan Density 10 Evasion (%) 55 Recoil Reduction 3 Item Schematics ----------------- None Robot Schematics ------------------ None Fabricated ------------ Nothing Alien Tech Used ----------------- None Achievements -------------- None Challenges ------------ None Game ------ Seed HybridCloakingWings Manual? 0 Play Time 00:22:41 Cumulative 257.2 hours Start 2024.08.31 @ 18:22:32 End 2024.08.31 @ 18:45:14 Sessions 1 Manual Loads 0 Difficulty Rogue Special Mode None Game No. 148 Rogue 148 Adventurer 0 Explorer 0 Win Type - Total 7 Types 4/1/2/0/0/0/0/0/0 Lore% 43 Gallery% 57 Achievement% 55 Wizard Run 0 Options --------- Layout 1 ASCII 0 Keyboard 0 Movement Mouse Keybinds 0 Fullscreen 1 Font 20/SmallcapsGlow Map View 58x39 Zoom Use 1% Tactical HUD 1 Map Filters NONE Filters NONE Steam 1 RUN: 1590549b-b51f-4320-93a4-c47d70e16a1c